{"text_format":"1","workbook":"xlsx","n_sheets":5,"sheets":["Fertige Liste","Urliste","Sokratesliste","Liste erstellen","Tabelle4"],"not_rendered":{"charts":0,"images":0,"macros":1,"external_links":0,"defined_names":2,"comments":0,"pivot_tables":0},"unopened":[],"bounds":{"document_bytes":16777216,"sheet_cells":100000,"rows_first":2000,"rows_last":500,"rows_between":2000,"halvings":0,"cell_chars":16384,"cell_head_chars":4096},"cells_cut":0,"cells_raw":0,"read":"whole","date_system":"1900"}

{"sheet":"Fertige Liste","index":0,"n_rows":42,"n_cols":9,"rows_kept":42,"cut":false,"hidden":false,"merged":[[37,0,37,8],[38,0,38,8],[40,0,40,3],[40,7,40,8],[41,0,41,3],[41,7,41,8],[0,0,0,3],[1,0,1,8],[33,0,33,8],[35,0,35,3],[35,5,35,6],[35,7,35,8]]}
["Langstempel der Schule\n"]
["Anmeldeliste zur Radfahrprüfung"]
["Klasse",null,null,"Schüleranzahl"]
["Prüfungsergebnis:"]
[]
["Startnr.","Theorie","Praxis","Gesamt\nergebnis","Zuname","Vorname","Geburtsdatum","Wohnanschrift","Vor- und Zuname des\nErziehungsberechtigten"]
[1,null,null,null,"","","","",""]
["",null,null,null,"","","","",""]
["",null,null,null,"","","","",""]
["",null,null,null,"","","","",""]
["",null,null,null,"","","","",""]
["",null,null,null,"","","","",""]
["",null,null,null,"","","","",""]
["",null,null,null,"","","","",""]
["",null,null,null,"","","","",""]
["",null,null,null,"","","","",""]
["",null,null,null,"","","","",""]
["",null,null,null,"","","","",""]
["",null,null,null,"","","","",""]
["",null,null,null,"","","","",""]
["",null,null,null,"","","","",""]
["",null,null,null,"","","","",""]
["",null,null,null,"","","","",""]
["",null,null,null,"","","","",""]
["",null,null,null,"","","","",""]
["",null,null,null,"","","","",""]
["",null,null,null,"","","","",""]
["",null,null,null,"","","","",""]
["",null,null,null,"","","","",""]
["",null,null,null,"","","","",""]
["",null,null,null,"","","","",""]
["",null,null,null,"","","","",""]
[""]
["Es wird bestätigt, dass die Erziehungsberechtigten der a.o. SchülerInnen die Zustimmung zur Ableistung der freiwilligen Radfahrprüfung als Grundlage für den Erhalt der behördlichen Bewilligung gemäß § 65 StVO 1960 erteilt haben."]
[]
["Datum",null,null,null,null,"Rundstempel ",null,"Unterschrift"]
[]
["Vorgenannte SchülerInnen (die mit Gesamtergebnis + gekennzeichent sind), haben am …………………. im theoretischen Teil der Radfahrprüfung nachgewiesen, dass sie Kenntnisse der straßenpolizeilichen Vorschriften besitzen.  Beim praktischen Teil der Radfahrprüfung haben die SchülerInnen gezeigt, dass sie groß und kräftig genug sind, um ein Fahrrad (welches für die Größe des jeweiligen Kindes geeignet ist) sicher bedienen zu können und auch beherrschen."]
["Seitens der Behörde kann den vorgenannten SchülerInnen gemäß § 65 Abs. 2 StVO 1960 eine Bewilligung (Lenken eines Fahrrades) erteilt werden."]
[]
["……………………………………………………………………..",null,null,null,null,null,null,"……………………………………………………………………………………………."]
["Datum",null,null,null,null,null,null,"Unterschrift"]

{"sheet":"Urliste","index":1,"n_rows":42,"n_cols":9,"rows_kept":42,"cut":false,"hidden":true,"merged":[[1,0,1,8],[0,0,0,3],[33,0,33,8],[37,0,37,8],[40,0,40,3],[38,0,38,8],[35,7,35,8],[41,7,41,8],[35,0,35,3],[41,0,41,3],[35,5,35,6],[40,7,40,8]]}
[{"$f":"\"Langstempel der Schule\"&CHAR(10)&Sokratesliste!L2","v":"Langstempel der Schule\n"}]
["Anmeldeliste zur Radfahrprüfung 2012/13"]
["Klasse",{"$f":"Sokratesliste!A2","v":0},null,"Schüleranzahl",{"$f":"MAX(A7:A32)","v":1}]
["Prüfungsergebnis:"]
[]
["Startnr.","Theorie","Praxis","Gesamt\nergebnis","Zuname","Vorname","Geburtsdatum","Wohnanschrift",{"$f":"\"Vor- und Zuname des\"&CHAR(10)&\"Erziehungsberechtigten\"","v":"Vor- und Zuname des\nErziehungsberechtigten"}]
[1,null,null,null,{"$f":"IF(Sokratesliste!B2<>\"\",Sokratesliste!B2,\"\")","v":""},{"$f":"IF(Sokratesliste!C2<>\"\",Sokratesliste!C2,\"\")","v":""},{"$f":"IF(Sokratesliste!D2<>\"\",Sokratesliste!D2,\"\")","v":""},{"$f":"IF(Sokratesliste!G2<>\"\",Sokratesliste!G2&\" \"&Sokratesliste!H2&CHAR(10)&Sokratesliste!I2&\" \"&Sokratesliste!J2,\"\")","v":""},{"$f":"IF(Sokratesliste!E2<>\"\",Sokratesliste!E2&\" \"&Sokratesliste!F2,\"\")","v":""}]
[{"$f":"IF(E8<>\"\",A7+1,\"\")","v":""},null,null,null,{"$f":"IF(Sokratesliste!B3<>\"\",Sokratesliste!B3,\"\")","v":""},{"$f":"IF(Sokratesliste!C3<>\"\",Sokratesliste!C3,\"\")","v":""},{"$f":"IF(Sokratesliste!D3<>\"\",Sokratesliste!D3,\"\")","v":""},{"$f":"IF(Sokratesliste!G3<>\"\",Sokratesliste!G3&\" \"&Sokratesliste!H3&CHAR(10)&Sokratesliste!I3&\" \"&Sokratesliste!J3,\"\")","v":""},{"$f":"IF(Sokratesliste!E3<>\"\",Sokratesliste!E3&\" \"&Sokratesliste!F3,\"\")","v":""}]
[{"$f":"IF(E9<>\"\",A8+1,\"\")","v":""},null,null,null,{"$f":"IF(Sokratesliste!B4<>\"\",Sokratesliste!B4,\"\")","v":""},{"$f":"IF(Sokratesliste!C4<>\"\",Sokratesliste!C4,\"\")","v":""},{"$f":"IF(Sokratesliste!D4<>\"\",Sokratesliste!D4,\"\")","v":""},{"$f":"IF(Sokratesliste!G4<>\"\",Sokratesliste!G4&\" \"&Sokratesliste!H4&CHAR(10)&Sokratesliste!I4&\" \"&Sokratesliste!J4,\"\")","v":""},{"$f":"IF(Sokratesliste!E4<>\"\",Sokratesliste!E4&\" \"&Sokratesliste!F4,\"\")","v":""}]
["",null,null,null,{"$f":"IF(Sokratesliste!B5<>\"\",Sokratesliste!B5,\"\")","v":""},{"$f":"IF(Sokratesliste!C5<>\"\",Sokratesliste!C5,\"\")","v":""},{"$f":"IF(Sokratesliste!D5<>\"\",Sokratesliste!D5,\"\")","v":""},{"$f":"IF(Sokratesliste!G5<>\"\",Sokratesliste!G5&\" \"&Sokratesliste!H5&CHAR(10)&Sokratesliste!I5&\" \"&Sokratesliste!J5,\"\")","v":""},{"$f":"IF(Sokratesliste!E5<>\"\",Sokratesliste!E5&\" \"&Sokratesliste!F5,\"\")","v":""}]
["",null,null,null,{"$f":"IF(Sokratesliste!B6<>\"\",Sokratesliste!B6,\"\")","v":""},{"$f":"IF(Sokratesliste!C6<>\"\",Sokratesliste!C6,\"\")","v":""},{"$f":"IF(Sokratesliste!D6<>\"\",Sokratesliste!D6,\"\")","v":""},{"$f":"IF(Sokratesliste!G6<>\"\",Sokratesliste!G6&\" \"&Sokratesliste!H6&CHAR(10)&Sokratesliste!I6&\" \"&Sokratesliste!J6,\"\")","v":""},{"$f":"IF(Sokratesliste!E6<>\"\",Sokratesliste!E6&\" \"&Sokratesliste!F6,\"\")","v":""}]
["",null,null,null,{"$f":"IF(Sokratesliste!B7<>\"\",Sokratesliste!B7,\"\")","v":""},{"$f":"IF(Sokratesliste!C7<>\"\",Sokratesliste!C7,\"\")","v":""},{"$f":"IF(Sokratesliste!D7<>\"\",Sokratesliste!D7,\"\")","v":""},{"$f":"IF(Sokratesliste!G7<>\"\",Sokratesliste!G7&\" \"&Sokratesliste!H7&CHAR(10)&Sokratesliste!I7&\" \"&Sokratesliste!J7,\"\")","v":""},{"$f":"IF(Sokratesliste!E7<>\"\",Sokratesliste!E7&\" \"&Sokratesliste!F7,\"\")","v":""}]
["",null,null,null,{"$f":"IF(Sokratesliste!B8<>\"\",Sokratesliste!B8,\"\")","v":""},{"$f":"IF(Sokratesliste!C8<>\"\",Sokratesliste!C8,\"\")","v":""},{"$f":"IF(Sokratesliste!D8<>\"\",Sokratesliste!D8,\"\")","v":""},{"$f":"IF(Sokratesliste!G8<>\"\",Sokratesliste!G8&\" \"&Sokratesliste!H8&CHAR(10)&Sokratesliste!I8&\" \"&Sokratesliste!J8,\"\")","v":""},{"$f":"IF(Sokratesliste!E8<>\"\",Sokratesliste!E8&\" \"&Sokratesliste!F8,\"\")","v":""}]
["",null,null,null,{"$f":"IF(Sokratesliste!B9<>\"\",Sokratesliste!B9,\"\")","v":""},{"$f":"IF(Sokratesliste!C9<>\"\",Sokratesliste!C9,\"\")","v":""},{"$f":"IF(Sokratesliste!D9<>\"\",Sokratesliste!D9,\"\")","v":""},{"$f":"IF(Sokratesliste!G9<>\"\",Sokratesliste!G9&\" \"&Sokratesliste!H9&CHAR(10)&Sokratesliste!I9&\" \"&Sokratesliste!J9,\"\")","v":""},{"$f":"IF(Sokratesliste!E9<>\"\",Sokratesliste!E9&\" \"&Sokratesliste!F9,\"\")","v":""}]
["",null,null,null,{"$f":"IF(Sokratesliste!B10<>\"\",Sokratesliste!B10,\"\")","v":""},{"$f":"IF(Sokratesliste!C10<>\"\",Sokratesliste!C10,\"\")","v":""},{"$f":"IF(Sokratesliste!D10<>\"\",Sokratesliste!D10,\"\")","v":""},{"$f":"IF(Sokratesliste!G10<>\"\",Sokratesliste!G10&\" \"&Sokratesliste!H10&CHAR(10)&Sokratesliste!I10&\" \"&Sokratesliste!J10,\"\")","v":""},{"$f":"IF(Sokratesliste!E10<>\"\",Sokratesliste!E10&\" \"&Sokratesliste!F10,\"\")","v":""}]
["",null,null,null,{"$f":"IF(Sokratesliste!B11<>\"\",Sokratesliste!B11,\"\")","v":""},{"$f":"IF(Sokratesliste!C11<>\"\",Sokratesliste!C11,\"\")","v":""},{"$f":"IF(Sokratesliste!D11<>\"\",Sokratesliste!D11,\"\")","v":""},{"$f":"IF(Sokratesliste!G11<>\"\",Sokratesliste!G11&\" \"&Sokratesliste!H11&CHAR(10)&Sokratesliste!I11&\" \"&Sokratesliste!J11,\"\")","v":""},{"$f":"IF(Sokratesliste!E11<>\"\",Sokratesliste!E11&\" \"&Sokratesliste!F11,\"\")","v":""}]
["",null,null,null,{"$f":"IF(Sokratesliste!B12<>\"\",Sokratesliste!B12,\"\")","v":""},{"$f":"IF(Sokratesliste!C12<>\"\",Sokratesliste!C12,\"\")","v":""},{"$f":"IF(Sokratesliste!D12<>\"\",Sokratesliste!D12,\"\")","v":""},{"$f":"IF(Sokratesliste!G12<>\"\",Sokratesliste!G12&\" \"&Sokratesliste!H12&CHAR(10)&Sokratesliste!I12&\" \"&Sokratesliste!J12,\"\")","v":""},{"$f":"IF(Sokratesliste!E12<>\"\",Sokratesliste!E12&\" \"&Sokratesliste!F12,\"\")","v":""}]
["",null,null,null,{"$f":"IF(Sokratesliste!B13<>\"\",Sokratesliste!B13,\"\")","v":""},{"$f":"IF(Sokratesliste!C13<>\"\",Sokratesliste!C13,\"\")","v":""},{"$f":"IF(Sokratesliste!D13<>\"\",Sokratesliste!D13,\"\")","v":""},{"$f":"IF(Sokratesliste!G13<>\"\",Sokratesliste!G13&\" \"&Sokratesliste!H13&CHAR(10)&Sokratesliste!I13&\" \"&Sokratesliste!J13,\"\")","v":""},{"$f":"IF(Sokratesliste!E13<>\"\",Sokratesliste!E13&\" \"&Sokratesliste!F13,\"\")","v":""}]
["",null,null,null,{"$f":"IF(Sokratesliste!B14<>\"\",Sokratesliste!B14,\"\")","v":""},{"$f":"IF(Sokratesliste!C14<>\"\",Sokratesliste!C14,\"\")","v":""},{"$f":"IF(Sokratesliste!D14<>\"\",Sokratesliste!D14,\"\")","v":""},{"$f":"IF(Sokratesliste!G14<>\"\",Sokratesliste!G14&\" \"&Sokratesliste!H14&CHAR(10)&Sokratesliste!I14&\" \"&Sokratesliste!J14,\"\")","v":""},{"$f":"IF(Sokratesliste!E14<>\"\",Sokratesliste!E14&\" \"&Sokratesliste!F14,\"\")","v":""}]
["",null,null,null,{"$f":"IF(Sokratesliste!B15<>\"\",Sokratesliste!B15,\"\")","v":""},{"$f":"IF(Sokratesliste!C15<>\"\",Sokratesliste!C15,\"\")","v":""},{"$f":"IF(Sokratesliste!D15<>\"\",Sokratesliste!D15,\"\")","v":""},{"$f":"IF(Sokratesliste!G15<>\"\",Sokratesliste!G15&\" \"&Sokratesliste!H15&CHAR(10)&Sokratesliste!I15&\" \"&Sokratesliste!J15,\"\")","v":""},{"$f":"IF(Sokratesliste!E15<>\"\",Sokratesliste!E15&\" \"&Sokratesliste!F15,\"\")","v":""}]
["",null,null,null,{"$f":"IF(Sokratesliste!B16<>\"\",Sokratesliste!B16,\"\")","v":""},{"$f":"IF(Sokratesliste!C16<>\"\",Sokratesliste!C16,\"\")","v":""},{"$f":"IF(Sokratesliste!D16<>\"\",Sokratesliste!D16,\"\")","v":""},{"$f":"IF(Sokratesliste!G16<>\"\",Sokratesliste!G16&\" \"&Sokratesliste!H16&CHAR(10)&Sokratesliste!I16&\" \"&Sokratesliste!J16,\"\")","v":""},{"$f":"IF(Sokratesliste!E16<>\"\",Sokratesliste!E16&\" \"&Sokratesliste!F16,\"\")","v":""}]
["",null,null,null,{"$f":"IF(Sokratesliste!B17<>\"\",Sokratesliste!B17,\"\")","v":""},{"$f":"IF(Sokratesliste!C17<>\"\",Sokratesliste!C17,\"\")","v":""},{"$f":"IF(Sokratesliste!D17<>\"\",Sokratesliste!D17,\"\")","v":""},{"$f":"IF(Sokratesliste!G17<>\"\",Sokratesliste!G17&\" \"&Sokratesliste!H17&CHAR(10)&Sokratesliste!I17&\" \"&Sokratesliste!J17,\"\")","v":""},{"$f":"IF(Sokratesliste!E17<>\"\",Sokratesliste!E17&\" \"&Sokratesliste!F17,\"\")","v":""}]
["",null,null,null,{"$f":"IF(Sokratesliste!B18<>\"\",Sokratesliste!B18,\"\")","v":""},{"$f":"IF(Sokratesliste!C18<>\"\",Sokratesliste!C18,\"\")","v":""},{"$f":"IF(Sokratesliste!D18<>\"\",Sokratesliste!D18,\"\")","v":""},{"$f":"IF(Sokratesliste!G18<>\"\",Sokratesliste!G18&\" \"&Sokratesliste!H18&CHAR(10)&Sokratesliste!I18&\" \"&Sokratesliste!J18,\"\")","v":""},{"$f":"IF(Sokratesliste!E18<>\"\",Sokratesliste!E18&\" \"&Sokratesliste!F18,\"\")","v":""}]
["",null,null,null,{"$f":"IF(Sokratesliste!B19<>\"\",Sokratesliste!B19,\"\")","v":""},{"$f":"IF(Sokratesliste!C19<>\"\",Sokratesliste!C19,\"\")","v":""},{"$f":"IF(Sokratesliste!D19<>\"\",Sokratesliste!D19,\"\")","v":""},{"$f":"IF(Sokratesliste!G19<>\"\",Sokratesliste!G19&\" \"&Sokratesliste!H19&CHAR(10)&Sokratesliste!I19&\" \"&Sokratesliste!J19,\"\")","v":""},{"$f":"IF(Sokratesliste!E19<>\"\",Sokratesliste!E19&\" \"&Sokratesliste!F19,\"\")","v":""}]
["",null,null,null,{"$f":"IF(Sokratesliste!B20<>\"\",Sokratesliste!B20,\"\")","v":""},{"$f":"IF(Sokratesliste!C20<>\"\",Sokratesliste!C20,\"\")","v":""},{"$f":"IF(Sokratesliste!D20<>\"\",Sokratesliste!D20,\"\")","v":""},{"$f":"IF(Sokratesliste!G20<>\"\",Sokratesliste!G20&\" \"&Sokratesliste!H20&CHAR(10)&Sokratesliste!I20&\" \"&Sokratesliste!J20,\"\")","v":""},{"$f":"IF(Sokratesliste!E20<>\"\",Sokratesliste!E20&\" \"&Sokratesliste!F20,\"\")","v":""}]
[{"$f":"IF(E26<>\"\",A25+1,\"\")","v":""},null,null,null,{"$f":"IF(Sokratesliste!B21<>\"\",Sokratesliste!B21,\"\")","v":""},{"$f":"IF(Sokratesliste!C21<>\"\",Sokratesliste!C21,\"\")","v":""},{"$f":"IF(Sokratesliste!D21<>\"\",Sokratesliste!D21,\"\")","v":""},{"$f":"IF(Sokratesliste!G21<>\"\",Sokratesliste!G21&\" \"&Sokratesliste!H21&CHAR(10)&Sokratesliste!I21&\" \"&Sokratesliste!J21,\"\")","v":""},{"$f":"IF(Sokratesliste!E21<>\"\",Sokratesliste!E21&\" \"&Sokratesliste!F21,\"\")","v":""}]
[{"$f":"IF(E27<>\"\",A26+1,\"\")","v":""},null,null,null,{"$f":"IF(Sokratesliste!B22<>\"\",Sokratesliste!B22,\"\")","v":""},{"$f":"IF(Sokratesliste!C22<>\"\",Sokratesliste!C22,\"\")","v":""},{"$f":"IF(Sokratesliste!D22<>\"\",Sokratesliste!D22,\"\")","v":""},{"$f":"IF(Sokratesliste!G22<>\"\",Sokratesliste!G22&\" \"&Sokratesliste!H22&CHAR(10)&Sokratesliste!I22&\" \"&Sokratesliste!J22,\"\")","v":""},{"$f":"IF(Sokratesliste!E22<>\"\",Sokratesliste!E22&\" \"&Sokratesliste!F22,\"\")","v":""}]
["",null,null,null,{"$f":"IF(Sokratesliste!B23<>\"\",Sokratesliste!B23,\"\")","v":""},{"$f":"IF(Sokratesliste!C23<>\"\",Sokratesliste!C23,\"\")","v":""},{"$f":"IF(Sokratesliste!D23<>\"\",Sokratesliste!D23,\"\")","v":""},{"$f":"IF(Sokratesliste!G23<>\"\",Sokratesliste!G23&\" \"&Sokratesliste!H23&CHAR(10)&Sokratesliste!I23&\" \"&Sokratesliste!J23,\"\")","v":""},{"$f":"IF(Sokratesliste!E23<>\"\",Sokratesliste!E23&\" \"&Sokratesliste!F23,\"\")","v":""}]
["",null,null,null,{"$f":"IF(Sokratesliste!B24<>\"\",Sokratesliste!B24,\"\")","v":""},{"$f":"IF(Sokratesliste!C24<>\"\",Sokratesliste!C24,\"\")","v":""},{"$f":"IF(Sokratesliste!D24<>\"\",Sokratesliste!D24,\"\")","v":""},{"$f":"IF(Sokratesliste!G24<>\"\",Sokratesliste!G24&\" \"&Sokratesliste!H24&CHAR(10)&Sokratesliste!I24&\" \"&Sokratesliste!J24,\"\")","v":""},{"$f":"IF(Sokratesliste!E24<>\"\",Sokratesliste!E24&\" \"&Sokratesliste!F24,\"\")","v":""}]
["",null,null,null,{"$f":"IF(Sokratesliste!B25<>\"\",Sokratesliste!B25,\"\")","v":""},{"$f":"IF(Sokratesliste!C25<>\"\",Sokratesliste!C25,\"\")","v":""},{"$f":"IF(Sokratesliste!D25<>\"\",Sokratesliste!D25,\"\")","v":""},{"$f":"IF(Sokratesliste!G25<>\"\",Sokratesliste!G25&\" \"&Sokratesliste!H25&CHAR(10)&Sokratesliste!I25&\" \"&Sokratesliste!J25,\"\")","v":""},{"$f":"IF(Sokratesliste!E25<>\"\",Sokratesliste!E25&\" \"&Sokratesliste!F25,\"\")","v":""}]
["",null,null,null,{"$f":"IF(Sokratesliste!B26<>\"\",Sokratesliste!B26,\"\")","v":""},{"$f":"IF(Sokratesliste!C26<>\"\",Sokratesliste!C26,\"\")","v":""},{"$f":"IF(Sokratesliste!D26<>\"\",Sokratesliste!D26,\"\")","v":""},{"$f":"IF(Sokratesliste!G26<>\"\",Sokratesliste!G26&\" \"&Sokratesliste!H26&CHAR(10)&Sokratesliste!I26&\" \"&Sokratesliste!J26,\"\")","v":""},{"$f":"IF(Sokratesliste!E26<>\"\",Sokratesliste!E26&\" \"&Sokratesliste!F26,\"\")","v":""}]
[{"$f":"IF(E32<>\"\",A31+1,\"\")","v":""},null,null,null,{"$f":"IF(Sokratesliste!B27<>\"\",Sokratesliste!B27,\"\")","v":""},{"$f":"IF(Sokratesliste!C27<>\"\",Sokratesliste!C27,\"\")","v":""},{"$f":"IF(Sokratesliste!D27<>\"\",Sokratesliste!D27,\"\")","v":""},{"$f":"IF(Sokratesliste!G27<>\"\",Sokratesliste!G27&\" \"&Sokratesliste!H27&CHAR(10)&Sokratesliste!I27&\" \"&Sokratesliste!J27,\"\")","v":""},{"$f":"IF(Sokratesliste!E27<>\"\",Sokratesliste!E27&\" \"&Sokratesliste!F27,\"\")","v":""}]
[{"$f":"IF(B33<>\"\",A32+1,\"\")","v":""}]
["Es wird bestätigt, dass die Erziehungsberechtigten der a.o. SchülerInnen die Zustimmung zur Ableistung der freiwilligen Radfahrprüfung als Grundlage für den Erhalt der behördlichen Bewilligung gemäß § 65 StVO n1960 erteilt haben."]
[]
["Datum",null,null,null,null,{"$f":"\"Rundstempel \"&Sokratesliste!L2","v":"Rundstempel "},null,"Unterschrift"]
[]
[{"$f":"IF(MID(Sokratesliste!K2,3,1)=\"1\",Tabelle4!A1&\" \"&Tabelle4!A2,\"\")","v":"Vorgenannte SchülerInnen (die mit Gesamtergebnis + gekennzeichent sind), haben am …………………. im theoretischen Teil der Radfahrprüfung nachgewiesen, dass sie Kenntnisse der straßenpolizeilichen Vorschriften besitzen.  Beim praktischen Teil der Radfahrprüfung haben die SchülerInnen gezeigt, dass sie groß und kräftig genug sind, um ein Fahrrad (welches für die Größe des jeweiligen Kindes geeignet ist) sicher bedienen zu können und auch beherrschen."}]
[{"$f":"IF(MID(Sokratesliste!K2,3,1)=\"1\",Tabelle4!A3,\"\")","v":"Seitens der Behörde kann den vorgenannten SchülerInnen gemäß § 65 Abs. 2 StVO 1960 eine Bewilligung (Lenken eines Fahrrades) erteilt werden."}]
[]
[{"$f":"IF(A42<>\"\",\"……………………………………………………………………..\",\"\")","v":"…………………………………………………………………….."},null,null,null,null,null,null,{"$f":"IF(H42<>\"\",\"…………………………………………………………………………………………….\",\"\")","v":"……………………………………………………………………………………………."}]
[{"$f":"IF(MID(Sokratesliste!K2,3,1)=\"1\",\"Datum\",\"\")","v":"Datum"},null,null,null,null,null,null,{"$f":"IF(MID(Sokratesliste!K2,3,1)=\"1\",\"Unterschrift\",\"\")","v":"Unterschrift"}]

{"sheet":"Sokratesliste","index":2,"n_rows":2,"n_cols":11,"rows_kept":2,"cut":false,"hidden":true,"merged":[]}
[]
[null,null,null,null,null,null,null,null,null,null,501012]

{"sheet":"Liste erstellen","index":3,"n_rows":0,"n_cols":0,"rows_kept":0,"cut":false,"hidden":true,"merged":[]}

{"sheet":"Tabelle4","index":4,"n_rows":5,"n_cols":4,"rows_kept":5,"cut":false,"hidden":true,"merged":[]}
["Vorgenannte SchülerInnen (die mit Gesamtergebnis + gekennzeichent sind), haben am …………………. im theoretischen Teil der Radfahrprüfung nachgewiesen, dass sie Kenntnisse der straßenpolizeilichen Vorschriften besitzen. "]
["Beim praktischen Teil der Radfahrprüfung haben die SchülerInnen gezeigt, dass sie groß und kräftig genug sind, um ein Fahrrad (welches für die Größe des jeweiligen Kindes geeignet ist) sicher bedienen zu können und auch beherrschen."]
["Seitens der Behörde kann den vorgenannten SchülerInnen gemäß § 65 Abs. 2 StVO 1960 eine Bewilligung (Lenken eines Fahrrades) erteilt werden."]
[]
["Datum",null,null,"Unterschrift"]